bitfinex/quotes_BTCUSD_20251201
["timestamp","ask_amount","ask_price","bid_price","bid_amount"]
[1764573113843,0.24346756,86254.0,86251.0,0.01159406]
[1764573114251,0.23187616,86253.0,86251.0,0.01159406]
[1764573114450,0.23187616,86253.0,86250.0,0.26403802]
[1764573114451,0.01159285,86260.0,86253.0,0.02395]
[1764573114751,0.01159285,86260.0,86257.0,0.01856]
[1764573114959,0.24345057,86260.0,86257.0,0.01856]
[1764573115109,0.24345057,86260.0,86257.0,0.05381]
[1764573115711,0.24345057,86260.0,86257.0,0.28567487]
[1764573116126,0.24344304,86263.0,86259.0,0.02395]
[1764573116468,0.24344938,86261.0,86260.0,0.02395]
[1764573117041,0.2318584,86260.0,86257.0,0.01856]
[1764573117257,0.23186194,86259.0,86258.0,0.02318625]
[1764573117440,0.23186194,86259.0,86257.0,0.04174652]
[1764573117841,0.23186194,86259.0,86257.0,0.01856]
[1764573118042,0.23186255,86258.0,86257.0,0.01856]
[1764573118220,0.24346347,86256.0,86252.0,0.01159393]
[1764573118433,0.24346347,86256.0,86252.0,0.24347063]
[1764573118847,0.24346347,86256.0,86253.0,0.24346801]
[1764573118848,0.01159339,86256.0,86253.0,0.24346801]
[1764573119366,0.24345826,86258.0,86254.0,0.23187171]
[1764573119574,0.24345053,86260.0,86257.0,0.04251]
[1764573119772,0.23186255,86258.0,86257.0,0.04251]
[1764573119968,0.23186073,86259.0,86257.0,0.04251]
[1764573120573,0.23186255,86258.0,86257.0,0.04251]
[1764573120988,0.23186255,86258.0,86257.0,0.01856]
[1764573121391,0.01159366,86254.0,86251.0,0.24347467]
[1764573121629,0.24346707,86254.0,86250.0,0.0115942]
[1764573121850,0.24346707,86254.0,86251.0,0.23187966]
[1764573122057,0.24346707,86254.0,86252.0,0.23187843]
[1764573122380,0.24346707,86254.0,86251.0,0.24347372]
[1764573122776,0.24346707,86254.0,86252.0,0.23187838]
[1764573123128,0.23187683,86253.0,86250.0,0.0115942]
[1764573123349,0.23187683,86253.0,86252.0,0.001]
[1764573123743,0.24346707,86254.0,86252.0,0.001]
[1764573123944,0.24346392,86256.0,86253.0,0.23187535]
[1764573124171,0.23187072,86255.0,86252.0,0.24447029]
[1764573124330,0.24346392,86256.0,86253.0,0.23187486]
[1764573124530,0.23187063,86255.0,86253.0,0.23187572]
[1764573125342,0.23187063,86255.0,86252.0,0.24347029]
[1764573125749,0.23187063,86255.0,86252.0,0.24547029]
[1764573126086,0.23186594,86257.0,86254.0,0.24346499]
[1764573126304,0.24345134,86260.0,86257.0,0.27437523]
[1764573126305,0.01159285,86260.0,86257.0,0.27437523]
[1764573126514,0.23185746,86260.0,86258.0,0.02318625]
[1764573126790,0.23185746,86260.0,86258.0,0.03525]
[1764573126990,0.23185986,86259.0,86258.0,0.03525]
[1764573127191,0.23186255,86258.0,86257.0,0.01856]
[1764573127984,0.23186594,86257.0,86255.0,0.24346399]
[1764573128499,0.23186594,86257.0,86253.0,0.01159379]
[1764573128500,0.24346136,86256.0,86253.0,0.01159379]
[1764573128703,0.23187261,86255.0,86253.0,0.23187582]
[1764573128932,0.24346296,86256.0,86253.0,0.24346961]
[1764573129147,0.24346296,86256.0,86254.0,0.23187286]
[1764573129378,0.01159339,86256.0,86254.0,0.23187286]
[1764573129572,0.53304392,86280.0,86254.0,0.23187286]
[1764573129573,0.01159299,86259.0,86255.0,0.23287061]
[1764573129722,0.24343889,86264.0,86259.0,0.03554299]
[1764573129924,0.24343889,86264.0,86260.0,0.25580581]
[1764573129925,0.24344218,86263.0,86260.0,0.25580581]
[1764573130122,0.24344218,86263.0,86260.0,0.26739866]
[1764573130331,0.01159232,86264.0,86261.0,0.23185368]
[1764573130647,0.24343955,86264.0,86261.0,0.23185368]
[1764573131846,0.01159205,86266.0,86262.0,0.28565953]
[1764573132055,0.01159205,86266.0,86259.0,0.23185772]
[1764573132056,0.01159259,86262.0,86259.0,0.23185772]
[1764573132265,0.24344339,86263.0,86261.0,0.23185448]
[1764573132444,0.24344339,86263.0,86260.0,0.2434481]
[1764573133050,0.24343908,86264.0,86261.0,0.23185259]
[1764573133345,0.23184938,86263.0,86261.0,0.23185448]
[1764573133579,0.24344183,86263.0,86260.0,0.2434481]
[1764573134101,0.24343655,86265.0,86262.0,0.01159259]
[1764573134243,0.23184688,86264.0,86262.0,0.24344245]
[1764573135282,0.23184216,86266.0,86263.0,0.23184897]
[1764573135484,0.24343421,86266.0,86263.0,0.23184897]
[1764573135865,0.01159218,86265.0,86262.0,0.01856]
[1764573136072,0.23184909,86264.0,86262.0,0.01856]
[1764573136391,0.23184911,86263.0,86262.0,0.01856]
[1764573139516,0.23185344,86262.0,86259.0,0.01159299]
[1764573139680,0.2434497,86261.0,86258.0,0.24345303]
[1764573139885,0.23820751,86260.0,86258.0,0.24345303]
[1764573140091,0.00635,86260.0,86258.0,0.24345303]
[1764573140298,0.00635,86260.0,86259.0,0.23185986]
[1764573142047,0.00635,86260.0,86258.0,0.24345303]
[1764573142683,0.24344541,86262.0,86259.0,0.23185986]
[1764573142962,0.01159259,86262.0,86259.0,0.02323]
[1764573143319,0.23185674,86261.0,86259.0,0.02323]
[1764573144188,0.23185717,86260.0,86259.0,0.02323]
[1764573144382,0.23185674,86261.0,86259.0,0.02323]
[1764573144807,0.23185674,86261.0,86258.0,0.23186238]
[1764573145463,0.23185756,86260.0,86258.0,0.23186238]
[1764573145666,0.23185756,86260.0,86257.0,0.24345831]
[1764573146669,0.23186118,86259.0,86256.0,0.23186333]
[1764573146870,0.23186275,86258.0,86256.0,0.23186333]
[1764573147091,0.24345417,86259.0,86256.0,0.24345672]
[1764573147519,0.24345417,86259.0,86257.0,0.23186391]
[1764573147718,0.01159299,86259.0,86257.0,0.23186391]
[1764573148116,0.24344573,86262.0,86259.0,0.23185923]
[1764573148492,0.24344573,86262.0,86259.0,0.26357923]
[1764573149222,0.24344573,86262.0,86259.0,0.27517222]
[1764573149366,0.24344343,86263.0,86260.0,0.23185692]
[1764573149567,0.24344343,86263.0,86258.0,0.01159312]
[1764573149568,0.00505,86260.0,86258.0,0.23186131]
[1764573150573,0.00505,86260.0,86257.0,0.2434565]
[1764573150574,0.23690755,86260.0,86257.0,0.2434565]
[1764573150795,0.24345775,86258.0,86254.0,0.24803869]
[1764573150997,0.24345775,86258.0,86254.0,0.24346235]
[1764573150998,0.23186611,86257.0,86254.0,0.24346235]
[1764573151983,0.00977,86255.0,86254.0,0.24346235]
[1764573152197,0.00977,86255.0,86254.0,0.24446235]
[1764573152965,0.00977,86255.0,86254.0,0.24346235]
[1764573153380,0.00977,86255.0,86254.0,0.24446235]
[1764573153834,0.24345775,86258.0,86255.0,0.23187012]
[1764573154132,0.23186569,86257.0,86254.0,0.24446235]
[1764573154484,0.23186569,86257.0,86254.0,0.24346235]
[1764573154936,0.23186569,86257.0,86255.0,0.23186997]
[1764573156012,0.23186569,86257.0,86255.0,0.23286997]
[1764573156402,0.24345775,86258.0,86255.0,0.23286997]
[1764573156599,0.2434529,86259.0,86256.0,0.23186745]
[1764573157049,0.23186297,86258.0,86256.0,0.23186745]
[1764573157735,0.23186289,86258.0,86255.0,0.2434635]
[1764573158115,0.23186289,86258.0,86256.0,0.23186745]
[1764573159715,0.24345601,86258.0,86254.0,0.24346689]
[1764573159876,0.01159312,86258.0,86256.0,0.23186737]
[1764573160207,0.24345642,86258.0,86256.0,0.23186737]
[1764573161420,0.24850194,86260.0,86257.0,0.23186523]
[1764573161575,0.26622114,86260.0,86257.0,0.23186523]
[1764573161943,0.23186186,86259.0,86256.0,0.24346076]
[1764573163228,0.23186186,86259.0,86257.0,0.23186512]
[1764573163641,0.23186152,86259.0,86256.0,0.24346076]
[1764573164843,0.00505,86260.0,86257.0,0.24345849]
[1764573165081,0.23690981,86260.0,86257.0,0.24345849]
[1764573169319,0.00505,86260.0,86258.0,0.23186174]
[1764573169611,0.01159259,86262.0,86259.0,0.25387986]
[1764573169804,0.24344623,86262.0,86261.0,0.01611]
[1764573171601,0.23186482,86258.0,86256.0,0.02776339]
[1764573171918,0.23186523,86257.0,86256.0,0.01617]
[1764573172480,0.23186523,86257.0,86254.0,0.24346676]
[1764573174372,0.23186523,86257.0,86254.0,0.24446676]
[1764573174551,0.23186982,86256.0,86254.0,0.01259366]
[1764573174912,0.23187061,86255.0,86254.0,0.001]
[1764573176404,0.23187061,86255.0,86253.0,0.23187545]
[1764573176870,0.23187061,86255.0,86254.0,0.001]
[1764573177632,0.23187061,86255.0,86253.0,0.23187545]
[1764573177846,0.23187061,86255.0,86253.0,0.23287545]
[1764573178191,0.23187061,86255.0,86253.0,0.23187545]
[1764573178480,0.23187061,86255.0,86254.0,0.001]
[1764573178861,0.24346321,86256.0,86254.0,0.23287289]
[1764573179237,0.01159339,86256.0,86254.0,0.23287289]
[1764573179650,0.01159339,86256.0,86254.0,0.23187289]
[1764573180180,0.24345924,86257.0,86254.0,0.23187289]
[1764573180390,0.24345924,86257.0,86253.0,0.24346523]
[1764573180391,0.24345642,86258.0,86256.0,0.26999633]
[1764573180546,0.24345642,86258.0,86257.0,0.02202]
[1764573180734,0.24345642,86258.0,86257.0,0.0532]
[1764573180936,0.24345642,86258.0,86257.0,0.02202]
[1764573181608,0.23187868,86252.0,86251.0,0.0348567]
[1764573181781,0.23187868,86252.0,86236.0,0.01611]
[1764573181782,0.23189481,86246.0,86236.0,0.01611]
[1764573181993,0.25337481,86246.0,86236.0,0.35225368]
[1764573182200,0.25337481,86246.0,86238.0,0.01159581]
[1764573182362,0.25337481,86246.0,86239.0,0.01159568]
[1764573182563,0.2882369,86246.0,86239.0,0.01159568]
[1764573183196,0.2882369,86246.0,86238.0,0.01159581]
[1764573183650,0.25337481,86246.0,86240.0,0.01159554]
[1764573183857,0.23189481,86246.0,86240.0,0.01159554]
[1764573184111,0.23189481,86246.0,86238.0,0.01159581]
[1764573184229,0.23189481,86246.0,86239.0,0.01159568]
[1764573185379,0.23189481,86246.0,86239.0,0.24350838]
[1764573186199,0.23189481,86246.0,86238.0,0.01159581]
[1764573186403,0.23189481,86246.0,86239.0,0.01159568]
[1764573186565,0.26675463,86247.0,86241.0,0.01159541]
[1764573186775,0.01159406,86251.0,86237.0,0.04277595]
[1764573186776,0.24346152,86256.0,86251.0,0.01159406]
[1764573186976,0.03485759,86256.0,86255.0,0.02202]
[1764573187262,0.03485759,86256.0,86255.0,0.27000061]
[1764573187424,0.23186105,86259.0,86255.0,0.31277414]
[1764573187750,0.24345243,86260.0,86256.0,0.2434602]
[1764573187913,0.24345243,86260.0,86257.0,0.231865]
[1764573188119,0.01159259,86262.0,86256.0,0.2434589]
[1764573188318,0.24344883,86261.0,86256.0,0.2434589]
[1764573188679,0.23185976,86260.0,86256.0,0.2434589]
[1764573189026,0.24344721,86261.0,86257.0,0.24345748]
[1764573189427,0.24344721,86261.0,86258.0,0.23186123]
[1764573189648,0.02139312,86258.0,86251.0,0.04645032]
[1764573189865,0.02139312,86258.0,86254.0,0.24346557]
[1764573190067,0.25325664,86258.0,86254.0,0.24346557]
[1764573190269,0.02139312,86258.0,86255.0,0.24346192]
[1764573190923,0.23185722,86260.0,86257.0,0.23186283]
[1764573191465,0.23185722,86260.0,86256.0,0.23186792]
[1764573191466,0.24345434,86259.0,86256.0,0.23186792]
[1764573193032,0.24345434,86259.0,86256.0,0.24346131]
[1764573193595,0.03485626,86261.0,86258.0,0.02202]
[1764573193795,0.03485626,86261.0,86260.0,0.02202]
[1764573193998,0.26671074,86261.0,86260.0,0.02202]
[1764573194200,0.23185448,86261.0,86260.0,0.06931]
[1764573194401,0.23185448,86261.0,86260.0,0.03813]
[1764573195222,0.23185448,86261.0,86260.0,0.01611]
[1764573196280,0.23185402,86262.0,86260.0,0.01611]
[1764573196487,0.23185448,86261.0,86260.0,0.01611]
[1764573201639,0.2434422,86263.0,86260.0,0.06688]
[1764573201872,0.03485508,86265.0,86262.0,0.01954]
[1764573201985,0.03485508,86265.0,86260.0,0.05893285]
[1764573201986,0.00011825,86271.0,86270.0,0.2318303]
[1764573202227,0.00011825,86271.0,86270.0,0.03527]
[1764573202437,0.23194586,86271.0,86270.0,0.03527]
[1764573202655,0.00011825,86271.0,86270.0,0.03527]
[1764573202882,0.23194586,86271.0,86270.0,0.01573]
[1764573203483,0.23194586,86271.0,86270.0,0.01673]
[1764573203795,0.23194586,86271.0,86270.0,0.001]
[1764573206667,0.25506586,86271.0,86270.0,0.001]
[1764573208865,0.23194586,86271.0,86270.0,0.001]
[1764573212884,0.24342915,86268.0,86264.0,0.01159232]
[1764573213080,0.23183837,86267.0,86264.0,0.01159232]
[1764573213278,0.24342915,86268.0,86264.0,0.24343684]
[1764573213537,0.2318343,86269.0,86265.0,0.24343564]
[1764573213895,0.2318343,86269.0,86266.0,0.01734]
[1764573214335,0.23183591,86268.0,86266.0,0.01734]
[1764573216354,0.23183591,86268.0,86266.0,0.01934]
[1764573216701,0.27838856,86271.0,86268.0,0.23183552]
[1764573216702,0.04656095,86271.0,86268.0,0.23183552]
[1764573216851,0.04656095,86271.0,86268.0,0.02167]
[1764573216852,0.2316006,86270.0,86268.0,0.02167]
[1764573217053,0.2318377,86268.0,86266.0,0.01934]
[1764573217564,0.23183836,86267.0,86266.0,0.01934]
[1764573218294,0.23183836,86267.0,86266.0,0.01834]
[1764573219107,0.23183836,86267.0,86266.0,0.01734]
[1764573219317,0.23183836,86267.0,86266.0,0.01834]
[1764573219898,0.23183836,86267.0,86266.0,0.02034]
[1764573220217,0.23183836,86267.0,86266.0,0.003]
[1764573221350,0.26073474,86269.0,86266.0,0.003]
[1764573221551,0.23183795,86268.0,86266.0,0.003]
[1764573222140,0.23183795,86268.0,86265.0,0.24343507]
[1764573222343,0.26073474,86269.0,86266.0,0.2318405]
[1764573222661,0.27827322,86270.0,86266.0,0.29294255]
[1764573222856,0.23183347,86269.0,86266.0,0.29294255]
[1764573223041,0.23183347,86269.0,86266.0,0.29394255]
[1764573223244,0.23183347,86269.0,86266.0,0.29294255]
[1764573223661,0.23183347,86269.0,86266.0,0.29394255]
[1764573224051,0.04656095,86271.0,86270.0,0.2318303]
[1764573224052,0.00011825,86271.0,86270.0,0.2318303]
[1764573224244,0.00011825,86271.0,86270.0,0.35772427]
[1764573224449,0.00011825,86271.0,86270.0,0.38989427]
[1764573225246,0.00011825,86271.0,86270.0,0.42473838]
[1764573225798,0.00011825,86271.0,86270.0,0.42573838]
[1764573225990,0.00011825,86271.0,86270.0,0.42673838]
[1764573226313,0.00011825,86271.0,86270.0,0.42573838]
[1764573226534,0.00011825,86271.0,86270.0,0.42873838]
[1764573231692,0.00011825,86271.0,86270.0,0.42773838]
[1764573232117,0.00011825,86271.0,86270.0,0.42573838]
[1764573232307,0.00011825,86271.0,86270.0,0.43073838]
[1764573232494,0.00011825,86271.0,86270.0,0.42973838]
[1764573232668,0.00011825,86271.0,86270.0,0.42473838]
[1764573232869,0.00011825,86271.0,86270.0,0.43173838]
[1764573233073,0.00011825,86271.0,86270.0,0.81726137]
[1764573233323,0.00732,86307.0,86305.0,0.23173444]
[1764573233648,0.02805614,86310.0,86306.0,0.24331912]
[1764573233855,0.02805614,86310.0,86306.0,0.25664912]
[1764573234042,0.02805614,86307.0,86306.0,0.25664912]
[1764573234272,0.24329782,86314.0,86310.0,0.24330767]
[1764573234677,0.24329782,86314.0,86311.0,0.2317193]
[1764573234878,0.04641991,86315.0,86314.0,0.23171212]
[1764573234879,0.03483444,86315.0,86314.0,0.23171212]
[1764573235030,0.00256097,86318.0,86314.0,0.23171212]
[1764573235031,0.00256097,86318.0,86315.0,0.01158547]
[1764573235232,0.00256097,86318.0,86316.0,0.23170665]
[1764573235433,0.00256097,86318.0,86315.0,0.01158547]
[1764573235629,0.00256097,86318.0,86316.0,0.23170675]
[1764573236852,0.00256097,86318.0,86315.0,0.24329433]
[1764573237145,0.00256097,86318.0,86316.0,0.23170616]
[1764573237484,0.00256097,86318.0,86317.0,0.27785406]
[1764573237709,0.00256097,86318.0,86317.0,0.31531406]
[1764573242226,0.00256097,86318.0,86317.0,0.31631406]
[1764573247585,0.00256097,86318.0,86317.0,0.23270406]
[1764573247765,0.00256097,86318.0,86317.0,0.31631406]
[1764573251629,0.00256097,86318.0,86317.0,0.31531406]
[1764573251825,0.00256097,86318.0,86317.0,0.31631406]
[1764573251985,0.00256097,86318.0,86317.0,0.32031406]
[1764573255392,0.00256097,86318.0,86317.0,0.38283705]
[1764573256367,0.00256097,86318.0,86317.0,0.38183705]
[1764573256684,0.00256097,86318.0,86317.0,0.70183705]
[1764573256985,0.00256097,86318.0,86317.0,0.70783705]
[1764573263392,0.00256097,86318.0,86317.0,0.74265629]
[1764573266358,0.00256097,86318.0,86317.0,0.74997629]
[1764573271753,0.21177739,86343.0,86340.0,0.23164206]
[1764573271958,0.24321107,86345.0,86342.0,0.02413]
[1764573272171,0.23163253,86344.0,86343.0,0.02413]
[1764573272609,0.23163253,86344.0,86343.0,0.06122]
[1764573273215,0.01158117,86347.0,86343.0,0.29285295]
[1764573273418,0.01198077,86350.0,86346.0,0.02413]
[1764573273419,0.0004,86350.0,86346.0,0.02413]
[1764573273598,0.0004,86350.0,86349.0,0.04262]
[1764573274473,0.0004,86350.0,86349.0,0.3113282]
[1764573276406,0.0004,86350.0,86349.0,0.3143282]
[1764573277640,0.0004,86350.0,86349.0,0.3153282]
[1764573278049,0.00142002,86350.0,86349.0,0.3153282]
[1764573281121,0.00142002,86350.0,86349.0,0.004]
[1764573281122,0.25783553,86350.0,86349.0,0.004]
[1764573281670,0.00142002,86350.0,86349.0,0.004]
[1764573281872,0.00142002,86350.0,86349.0,0.2717082]
[1764573282078,0.00142002,86350.0,86349.0,0.2697082]
[1764573282500,0.00142002,86350.0,86349.0,0.2707082]
[1764573283563,0.00142002,86350.0,86349.0,0.2697082]
[1764573283692,0.00142002,86350.0,86349.0,0.2326182]
[1764573284719,0.00142002,86350.0,86349.0,0.001]
[1764573285137,0.23303553,86350.0,86349.0,0.001]
[1764573285854,0.00142002,86350.0,86349.0,0.001]
[1764573286517,0.00142002,86350.0,86349.0,0.2326182]
[1764573286736,0.00142002,86350.0,86349.0,0.001]
[1764573286946,0.27030553,86350.0,86349.0,0.001]
[1764573287145,0.29309553,86350.0,86349.0,0.001]
[1764573287421,0.30041553,86350.0,86349.0,0.001]
[1764573288176,0.23165339,86336.0,86333.0,0.24324336]
[1764573288373,0.23165844,86334.0,86329.0,0.24325494]
[1764573288577,0.23166446,86332.0,86329.0,0.24325494]
[1764573288773,0.24324765,86332.0,86328.0,0.01158372]
[1764573288973,0.02543251,86337.0,86321.0,0.01804]
[1764573288974,0.23168259,86325.0,86321.0,0.01804]
[1764573289187,0.231678,86327.0,86324.0,0.10422397]
[1764573289627,0.231678,86327.0,86323.0,0.01804]
[1764573289628,0.01158399,86326.0,86318.0,0.01158506]
[1764573289804,0.01158439,86323.0,86319.0,0.01158493]
[1764573290007,0.01158386,86327.0,86322.0,0.1158085]
[1764573290307,0.23168035,86326.0,86322.0,0.37218912]
[1764573290632,0.23168035,86326.0,86319.0,0.04795493]
[1764573290633,0.24329783,86314.0,86307.0,0.2317286]
[1764573290789,0.24330688,86311.0,86306.0,0.01158667]
[1764573290974,0.24329864,86314.0,86309.0,0.11581024]
[1764573291613,0.0115856,86314.0,86310.0,0.24330847]
[1764573291815,0.23171065,86315.0,86311.0,0.2433049]
[1764573292019,0.24329242,86316.0,86312.0,0.24330236]
[1764573292196,0.24330686,86311.0,86305.0,0.01158681]
[1764573292410,0.01158694,86304.0,86299.0,0.01158761]
[1764573292585,0.0134,86304.0,86301.0,0.01158735]
[1764573292979,0.01158708,86303.0,86298.0,0.02962775]
[1764573293183,0.0134,86304.0,86301.0,0.24333372]
[1764573293410,0.0134,86304.0,86302.0,0.23174374]
[1764573293603,0.01344115,86304.0,86302.0,0.23174374]
[1764573294341,0.01344115,86304.0,86303.0,0.23174165]
[1764573294637,0.01344115,86304.0,86302.0,0.23174433]
[1764573294842,0.01344115,86304.0,86302.0,0.23574433]
[1764573295046,0.01344115,86304.0,86303.0,0.23174165]
[1764573295347,4.115e-05,86304.0,86303.0,0.23174165]
[1764573295529,4.115e-05,86304.0,86302.0,0.004]
[1764573295893,4.115e-05,86304.0,86302.0,0.001]
[1764573296217,4.115e-05,86304.0,86302.0,0.23274375]
[1764573297323,4.115e-05,86304.0,86303.0,0.004]
[1764573297662,0.01158667,86306.0,86302.0,0.24433096]
[1764573298008,0.01158667,86306.0,86302.0,0.24833096]
[1764573298214,0.01158667,86306.0,86303.0,0.23174087]
[1764573298609,0.01158667,86306.0,86303.0,0.004]
[1764573298848,0.01158667,86306.0,86302.0,0.24433132]
[1764573299246,0.01158667,86306.0,86303.0,0.2317408]
[1764573299700,0.01158667,86306.0,86303.0,0.2327408]
[1764573300095,0.01158667,86306.0,86303.0,0.2317408]
[1764573300441,0.01097257,86306.0,86303.0,0.2327408]
[1764573300631,0.01097257,86306.0,86303.0,0.2357408]
[1764573301032,0.23172385,86310.0,86304.0,0.01158694]
[1764573301271,0.23173896,86304.0,86303.0,0.004]
[1764573301472,0.25696896,86304.0,86303.0,0.004]
[1764573301648,0.29179896,86304.0,86303.0,0.004]
[1764573301890,0.24335548,86294.0,86290.0,0.23177647]
[1764573304459,0.24333271,86302.0,86298.0,0.36560677]
[1764573305060,0.24333271,86302.0,86298.0,0.36760677]
[1764573305824,0.24333271,86302.0,86299.0,0.23175111]
[1764573306025,0.23174763,86301.0,86298.0,0.12426397]
[1764573306236,0.25698239,86299.0,86298.0,0.002]
[1764573306630,0.29181239,86299.0,86298.0,0.002]
[1764573306867,0.23177184,86292.0,86290.0,4.115e-05]
[1764573307635,0.29183388,86291.0,86290.0,4.115e-05]
[1764573308425,0.29183388,86291.0,86290.0,0.00404115]
[1764573308629,0.29183388,86291.0,86290.0,4.115e-05]
[1764573308945,0.29183388,86291.0,86290.0,0.00104115]
[1764573309503,0.29183388,86291.0,86290.0,4.115e-05]
[1764573309708,0.29183388,86291.0,86290.0,0.00104115]
[1764573309906,0.29183388,86291.0,86290.0,0.00504115]
[1764573310294,0.29183388,86291.0,86290.0,0.00104115]
[1764573310494,0.29183388,86291.0,86290.0,0.00404115]
[1764573311036,0.61483388,86291.0,86290.0,0.00404115]
[1764573311190,0.61483388,86291.0,86290.0,0.00104115]
[1764573311375,0.61483388,86291.0,86290.0,4.115e-05]
[1764573314963,0.70883604,86291.0,86290.0,4.115e-05]
[1764573315517,0.61483388,86291.0,86290.0,4.115e-05]
[1764573318615,0.01295,86295.0,86290.0,0.01162997]
[1764573318805,0.01295,86295.0,86293.0,0.23176784]
[1764573319128,0.02453815,86295.0,86290.0,0.01162997]
[1764573319329,0.24335764,86293.0,86290.0,4.115e-05]
[1764573319511,0.04954829,86294.0,86290.0,0.01162997]
[1764573319718,0.24335873,86293.0,86290.0,0.24340536]
[1764573319926,0.281316,86294.0,86290.0,0.24340536]
[1764573320091,0.281316,86294.0,86290.0,0.01162997]
[1764573320293,0.281316,86294.0,86290.0,0.24340508]
[1764573320490,0.281316,86294.0,86291.0,0.23177372]
[1764573320704,0.02379,86291.0,86290.0,4.115e-05]
[1764573321652,0.04954829,86294.0,86290.0,4.115e-05]
[1764573321653,0.01158829,86294.0,86290.0,0.23181771]
[1764573321869,0.24335486,86294.0,86291.0,0.2317738]
[1764573322057,0.01295,86295.0,86292.0,0.23177116]
[1764573322272,0.01295,86295.0,86292.0,0.24335971]
[1764573322476,0.25630275,86295.0,86292.0,0.24335971]
[1764573322654,0.25630275,86295.0,86290.0,0.01162997]
[1764573322655,0.24335502,86294.0,86290.0,0.01162997]
[1764573322851,0.23177073,86293.0,86290.0,4.115e-05]
[1764573323053,0.01158842,86293.0,86291.0,0.23177347]
[1764573323646,0.2555616,86292.0,86290.0,4.115e-05]
[1764573324469,0.02379,86292.0,86290.0,0.23181719]
[1764573325284,0.2555616,86292.0,86290.0,4.115e-05]
[1764573326305,0.28998388,86291.0,86290.0,4.115e-05]
[1764573326508,0.05821,86291.0,86290.0,4.115e-05]
[1764573326728,0.02379,86291.0,86290.0,4.115e-05]
[1764573327086,0.02379,86291.0,86290.0,0.23181771]
[1764573327287,0.01158842,86293.0,86291.0,0.23177199]
[1764573328072,0.24335743,86293.0,86290.0,0.24340653]
[1764573330587,0.53269203,86310.0,86290.0,0.24340653]
[1764573330588,0.01158748,86300.0,86293.0,0.2317685]
[1764573330789,0.25673156,86302.0,86297.0,0.01158788]
[1764573330790,0.0134,86302.0,86297.0,0.01158788]
[1764573331107,0.2567319,86302.0,86298.0,0.26091044]
[1764573331524,0.2567319,86302.0,86298.0,0.24334044]
[1764573331723,0.001,86300.0,86298.0,0.24334044]
[1764573332409,0.001,86300.0,86299.0,0.23175239]
[1764573332610,0.001,86300.0,86298.0,0.24334044]
[1764573333142,0.24333532,86301.0,86298.0,0.24434044]
[1764573333343,0.24333532,86301.0,86298.0,0.24334044]
[1764573333679,0.24333532,86301.0,86299.0,0.001]
[1764573334739,0.24333532,86301.0,86298.0,0.24334044]
[1764573334934,0.0134,86302.0,86300.0,0.23174971]
[1764573335135,0.0134,86302.0,86299.0,0.24333867]
[1764573335380,0.24514524,86302.0,86299.0,0.24333867]
[1764573335610,0.24514524,86302.0,86300.0,0.23174938]
[1764573335738,0.25673245,86302.0,86299.0,0.24433867]
[1764573335938,0.25673245,86302.0,86299.0,0.24333867]
[1764573336138,0.23177388,86291.0,86290.0,4.115e-05]
[1764573336342,0.29143388,86291.0,86290.0,4.115e-05]
[1764573336960,0.61443388,86291.0,86290.0,4.115e-05]
[1764573338035,0.61443388,86291.0,86290.0,0.00104115]
[1764573338332,0.61443388,86291.0,86290.0,4.115e-05]
[1764573354286,0.72813679,86291.0,86290.0,4.115e-05]
[1764573354546,2.75316526,86291.0,86290.0,4.115e-05]
[1764573356869,2.82728084,86291.0,86290.0,4.115e-05]
[1764573357061,2.82728084,86291.0,86254.0,0.24346226]
[1764573357062,0.2434531,86259.0,86255.0,0.23187021]
[1764573357215,0.2434531,86259.0,86255.0,0.23198846]
[1764573357415,0.24345395,86259.0,86255.0,0.23198846]
[1764573358065,0.24345395,86259.0,86256.0,0.23186695]
[1764573358391,0.23185733,86260.0,86256.0,0.24346034]
[1764573358530,0.23186015,86259.0,86257.0,0.23186422]
[1764573359101,0.23186015,86259.0,86256.0,0.24346034]
[1764573359698,0.01159299,86259.0,86256.0,0.24346034]
[1764573359910,0.24345316,86259.0,86257.0,0.001]
[1764573360537,0.23186255,86258.0,86257.0,0.001]
[1764573360707,0.28996255,86258.0,86257.0,0.001]
[1764573361457,0.23186792,86256.0,86255.0,0.00011825]
[1764573361660,0.25420792,86256.0,86255.0,0.00011825]
[1764573361836,0.28996792,86256.0,86255.0,0.00011825]
[1764573362712,0.28996792,86256.0,86255.0,0.00111825]
[1764573363051,0.37155208,86256.0,86255.0,0.00188435]
[1764573363282,0.13968416,86256.0,86255.0,0.00188435]
[1764573363489,0.23186564,86257.0,86255.0,0.00588435]
[1764573363693,0.23186564,86257.0,86255.0,0.00511825]
[1764573363895,0.01159285,86260.0,86256.0,0.24419548]
[1764573364096,0.01159285,86260.0,86256.0,0.24346131]
[1764573364683,0.23185997,86259.0,86256.0,0.24346131]
[1764573365094,0.23184067,86267.0,86263.0,0.23184832]
[1764573365244,0.01159164,86269.0,86263.0,0.01159245]
[1764573365448,0.01159178,86268.0,86265.0,0.24343508]
[1764573365644,0.243425,86269.0,86265.0,0.24343578]
[1764573365857,0.243425,86269.0,86265.0,0.01159218]
[1764573366058,0.23183891,86267.0,86264.0,0.24343874]
[1764573366262,0.23183891,86267.0,86264.0,0.23184524]
[1764573366665,0.23183891,86267.0,86265.0,0.002]
[1764573366888,0.24343534,86266.0,86263.0,0.01159245]
[1764573367208,0.24343534,86266.0,86264.0,0.002]
[1764573367607,0.24343534,86266.0,86263.0,0.24344139]
[1764573367956,0.23184375,86265.0,86261.0,0.24344711]
[1764573368162,0.24344113,86264.0,86260.0,0.23185625]
[1764573368674,0.23184913,86263.0,86261.0,0.23185391]
[1764573369361,0.23184913,86263.0,86260.0,0.23485625]
[1764573369659,0.25419448,86261.0,86260.0,0.003]
[1764573369838,0.23186792,86256.0,86255.0,0.00011825]
[1764573370055,0.25420792,86256.0,86255.0,0.00011825]
[1764573370215,0.28996792,86256.0,86255.0,0.00011825]
[1764573371064,0.28996792,86256.0,86255.0,0.00111825]
[1764573372294,0.28996792,86256.0,86255.0,0.00511825]
[1764573373172,0.2507672,86261.0,86255.0,0.00511825]
[1764573373173,0.01159299,86259.0,86255.0,0.00511825]
[1764573373395,0.01159299,86259.0,86255.0,0.24858204]
[1764573373593,0.24345369,86259.0,86255.0,0.01671178]
[1764573373799,0.24345369,86259.0,86256.0,0.23186775]
[1764573373997,0.24345369,86259.0,86255.0,0.24758082]
[1764573374196,0.2318636,86258.0,86255.0,0.24758082]
[1764573374789,0.24344245,86263.0,86262.0,0.00054261]
[1764573375178,0.30154245,86263.0,86262.0,0.00054261]
[1764573376003,0.02234,86263.0,86262.0,0.00054261]
[1764573376203,0.02234,86263.0,86262.0,0.00254261]
[1764573377014,0.25418911,86263.0,86262.0,0.00254261]
[1764573378328,0.25075289,86267.0,86262.0,0.00254261]
[1764573378521,0.00732,86267.0,86264.0,0.23184399]
[1764573378861,0.24343372,86266.0,86263.0,0.23184399]
[1764573379430,0.01159205,86266.0,86264.0,0.23184547]
[1764573379788,0.33032,86267.0,86264.0,0.01159232]